[Event "Queens Festival Europe 2022"]
[Site "Tornelo"]
[Date "2022.06.19"]
[Round "4.2"]
[White "Richtrova, Eliska"]
[Black "Head, Louise"]
[Result "1/2-1/2"]
[ECO "B11"]
[WhiteElo "2204"]
[BlackElo "2025"]
[Annotator "NA RC"]
[PlyCount "112"]
[EventDate "2022.06.19"]
[EventType "swiss"]
[EventCountry "NET"]
[SourceTitle "playchess.com"]
[Source "ChessBase"]
[SourceQuality "1"]
[TimeControl "180+2"]

1. e4 {[%emt 0:00:02]} c6 {[%emt 0:00:04]} 2. Nc3 {[%emt 0:00:03]} d5 {[%emt 0:00:02]} 3. Nf3 {[%emt 0:00:02]} Nf6 {[%emt 0:00:02]} 4. e5 {[%emt 0:00:05]} Ne4 {[%emt 0:00:02]} 5. d4 {[%emt 0:00:07]} Nxc3 {[%emt 0:00:03]} 6. bxc3 {[%emt 0:00:02]} c5 {[%emt 0:00:01]} 7. Be2 {[%emt 0:00:08]} Nc6 {[%emt 0:00:02]} 8. O-O {[%emt 0:00:02]} e6 {[%emt 0:00:12]} 9. Rb1 {[%emt 0:00:10]} Qa5 {[%emt 0:00:07]} 10. dxc5 {[%emt 0:00:04]} Qxc3 {[%emt 0:00:14]} 11. Be3 {[%emt 0:00:14]} Qa5 {[%emt 0:00:18]} 12. c4 {[%emt 0:00:05]} Qxa2 {[%emt 0:00:05]} 13. cxd5 {[%emt 0:00:15]} Qxd5 {[%emt 0:00:04]} 14. Qc2 {[%emt 0:00:04]} Qd8 {[%emt 0:00:09]} 15. Rfd1 {[%emt 0:00:07]} Qc7 {[%emt 0:00:01]} 16. Qb2 {[%emt 0:00:14]} Be7 {[%emt 0:00:03]} 17. Bd3 {[%emt 0:00:12]} O-O {[%emt 0:00:04]} 18. Be4 {[%emt 0:00:12]} a5 {[%emt 0:00:07]} 19. Qb6 {[%emt 0:00:18]} Qxb6 {[%emt 0:00:10]} 20. cxb6 {[%emt 0:00:02]} Nb4 {[%emt 0:00:32]} 21. Nd4 {[%emt 0:00:17]} Nd5 {[%emt 0:00:09]} 22. Bxd5 {[%emt 0:00:11]} exd5 {[%emt 0:00:02]} 23. Nb5 {[%emt 0:00:03]} Be6 {[%emt 0:00:05]} 24. f4 {[%emt 0:00:06]} g6 {[%emt 0:00:04]} 25. h3 {[%emt 0:00:11]} h5 {[%emt 0:00:03]} 26. Rdc1 {[%emt 0:00:08]} Rac8 {[%emt 0:00:03]} 27. Rc7 {[%emt 0:00:04]} Rxc7 {[%emt 0:00:12]} 28. bxc7 {[%emt 0:00:02]} Bd7 {[%emt 0:00:16]} 29. Nd6 {[%emt 0:00:03]} Bxd6 {[%emt 0:00:06]} 30. exd6 {[%emt 0:00:02]} Bc6 {[%emt 0:00:03]} 31. Bd4 {[%emt 0:00:08]} Re8 {[%emt 0:00:03]} 32. Kf2 {[%emt 0:00:03]} a4 {[%emt 0:00:07]} 33. g4 {[%emt 0:00:05]} hxg4 {[%emt 0:00:02]} 34. hxg4 {[%emt 0:00:01]} f5 {[%emt 0:00:02]} 35. g5 {[%emt 0:00:03]} Kf7 {[%emt 0:00:02]} 36. Be5 {[%emt 0:00:02]} d4 {[%emt 0:00:08]} 37. Rxb7 {[%emt 0:00:03]} Bxb7 {[%emt 0:00:04]} 38. d7 {[%emt 0:00:02]} Ke7 {[%emt 0:00:05]} 39. dxe8=Q+ {[%emt 0:00:03]} Kxe8 {[%emt 0:00:02]} 40. Bxd4 {[%emt 0:00:03]} a3 {[%emt 0:00:02]} 41. Ke3 {[%emt 0:00:02]} Kd7 {[%emt 0:00:03]} 42. Be5 {[%emt 0:00:02]} a2 {[%emt 0:00:02]} 43. Kd2 {[%emt 0:00:02]} Bd5 {[%emt 0:00:04]} 44. Kd3 {[%emt 0:00:04]} Be6 {[%emt 0:00:04]} 45. Kc2 {[%emt 0:00:03]} a1=Q {[%emt 0:00:04]} 46. Bxa1 {[%emt 0:00:03]} Kxc7 {[%emt 0:00:01]} 47. Be5+ {[%emt 0:00:02]} Kd7 {[%emt 0:00:01]} 48. Kd3 {[%emt 0:00:02]} Ke7 {[%emt 0:00:01]} 49. Kd4 {[%emt 0:00:02]} Kf7 {[%emt 0:00:01]} 50. Kc5 {[%emt 0:00:02]} Ba2 {[%emt 0:00:03]} 51. Kd6 {[%emt 0:00:02]} Bb1 {[%emt 0:00:01]} 52. Bf6 {[%emt 0:00:02]} Be4 {[%emt 0:00:01]} 53. Be5 {[%emt 0:00:03]} Bc2 {[%emt 0:00:02]} 54. Bf6 {[%emt 0:00:01]} Be4 {[%emt 0:00:01]} 55. Be5 {[%emt 0:00:03]} Bc2 {[%emt 0:00:02]} 56. Bf6 {[%emt 0:00:01]} Be4 {[%emt 0:00:01]} 1/2-1/2

[Event "Queens Festival Europe 2022"]
[Site "Tornelo"]
[Date "2022.06.19"]
[Round "4.2"]
[White "Deak-Sala, Emilia"]
[Black "Gjergji, Rozana"]
[Result "1-0"]
[ECO "C55"]
[WhiteElo "1883"]
[BlackElo "1920"]
[Annotator "NA RC"]
[PlyCount "39"]
[EventDate "2022.06.19"]
[EventType "swiss"]
[EventCountry "NET"]
[SourceTitle "playchess.com"]
[Source "ChessBase"]
[SourceQuality "1"]
[TimeControl "180+2"]

1. e4 {[%emt 0:00:02]} e5 {[%emt 0:00:06]} 2. Nf3 {[%emt 0:00:02]} Nc6 {[%emt 0:00:03]} 3. Bc4 {[%emt 0:00:05]} Be7 {[%emt 0:00:02]} 4. d3 {[%emt 0:00:01]} Nf6 {[%emt 0:00:03]} 5. c3 {[%emt 0:00:04]} O-O {[%emt 0:00:05]} 6. Bb3 {[%emt 0:00:02]} d6 {[%emt 0:00:04]} 7. Nbd2 {[%emt 0:00:01]} Bg4 {[%emt 0:00:05]} 8. Nf1 {[%emt 0:00:03]} Qd7 {[%emt 0:00:06]} 9. Ng3 {[%emt 0:00:02]} h6 {[%emt 0:00:13]} 10. h3 {[%emt 0:00:02]} Be6 {[%emt 0:00:05]} 11. Bc2 {[%emt 0:00:02]} d5 {[%emt 0:00:04]} 12. Qe2 {[%emt 0:00:02]} dxe4 {[%emt 0:00:07]} 13. dxe4 {[%emt 0:00:09]} Bc5 {[%emt 0:00:03]} 14. O-O {[%emt 0:00:02]} Rad8 {[%emt 0:00:05]} 15. Nh4 {[%emt 0:00:06]} Qe7 {[%emt 0:00:04]} 16. Nhf5 {[%emt 0:00:02]} Qe8 {[%emt 0:00:12]} 17. Qf3 {[%emt 0:00:08]} Ne7 {[%emt 0:00:07]} 18. Nxh6+ {[%emt 0:00:06]} gxh6 {[%emt 0:00:05]} 19. Qxf6 {[%emt 0:00:02]} Bxh3 {[%emt 0:00:28]} 20. Bxh6 {[%emt 0:00:22]} 1-0

[Event "Queens Festival Europe 2022"]
[Site "Tornelo"]
[Date "2022.06.19"]
[Round "4.2"]
[White "Rybackova, Lucie"]
[Black "Omeri, Eklea"]
[Result "1-0"]
[ECO "D20"]
[WhiteElo "1696"]
[BlackElo "1525"]
[Annotator "NA RC"]
[PlyCount "91"]
[EventDate "2022.06.19"]
[EventType "swiss"]
[EventCountry "NET"]
[SourceTitle "playchess.com"]
[Source "ChessBase"]
[SourceQuality "1"]
[TimeControl "180+2"]

1. d4 {[%emt 0:00:02]} d5 {[%emt 0:00:06]} 2. c4 {[%emt 0:00:03]} dxc4 {[%emt 0:00:01]} 3. e4 {[%emt 0:00:02]} c6 {[%emt 0:00:02]} 4. Bxc4 {[%emt 0:00:04]} Nf6 {[%emt 0:00:02]} 5. Nc3 {[%emt 0:00:02]} g6 {[%emt 0:00:04]} 6. Nf3 {[%emt 0:00:04]} Bg7 {[%emt 0:00:05]} 7. O-O {[%emt 0:00:12]} O-O {[%emt 0:00:03]} 8. a3 {[%emt 0:00:03]} Bg4 {[%emt 0:00:05]} 9. Be3 {[%emt 0:00:06]} e6 {[%emt 0:00:05]} 10. h3 {[%emt 0:00:02]} Bxf3 {[%emt 0:00:02]} 11. Qxf3 {[%emt 0:00:02]} Nbd7 {[%emt 0:00:02]} 12. Rfd1 {[%emt 0:00:24]} Qc7 {[%emt 0:00:10]} 13. Rac1 {[%emt 0:00:14]} Nb6 {[%emt 0:00:05]} 14. Ba2 {[%emt 0:00:05]} h6 {[%emt 0:00:13]} 15. d5 {[%emt 0:00:18]} exd5 {[%emt 0:00:09]} 16. exd5 {[%emt 0:00:03]} Rac8 {[%emt 0:00:31]} 17. Bf4 {[%emt 0:00:46]} Qd7 {[%emt 0:00:14]} 18. dxc6 {[%emt 0:00:05]} Qxc6 {[%emt 0:00:15]} 19. Nd5 {[%emt 0:00:06]} Qe6 {[%emt 0:00:44]} 20. Nxf6+ {[%emt 0:00:31]} Qxf6 {[%emt 0:00:03]} 21. b4 {[%emt 0:00:05]} g5 {[%emt 0:00:10]} 22. Be3 {[%emt 0:00:05]} Qxf3 {[%emt 0:00:05]} 23. gxf3 {[%emt 0:00:02]} Rxc1 {[%emt 0:00:03]} 24. Bxc1 {[%emt 0:00:04]} Rc8 {[%emt 0:00:06]} 25. Be3 {[%emt 0:00:08]} Na4 {[%emt 0:00:16]} 26. Bd4 {[%emt 0:00:04]} Bxd4 {[%emt 0:00:04]} 27. Rxd4 {[%emt 0:00:02]} Nc3 {[%emt 0:00:02]} 28. Bc4 {[%emt 0:00:04]} Kf8 {[%emt 0:00:05]} 29. Bf1 {[%emt 0:00:02]} b6 {[%emt 0:00:03]} 30. Kg2 {[%emt 0:00:01]} a5 {[%emt 0:00:02]} 31. Rd6 {[%emt 0:00:02]} axb4 {[%emt 0:00:02]} 32. axb4 {[%emt 0:00:01]} b5 {[%emt 0:00:02]} 33. Rb6 {[%emt 0:00:02]} Rc4 {[%emt 0:00:04]} 34. Bxc4 {[%emt 0:00:02]} bxc4 {[%emt 0:00:02]} 35. Rc6 {[%emt 0:00:01]} Ne2 {[%emt 0:00:03]} 36. Rxc4 {[%emt 0:00:02]} Nf4+ {[%emt 0:00:01]} 37. Kh2 {[%emt 0:00:01]} Nd5 {[%emt 0:00:03]} 38. b5 {[%emt 0:00:03]} Nb6 {[%emt 0:00:02]} 39. Rc6 {[%emt 0:00:01]} Nd5 {[%emt 0:00:02]} 40. b6 {[%emt 0:00:02]} Ke7 {[%emt 0:00:02]} 41. b7 {[%emt 0:00:01]} Kd7 {[%emt 0:00:01]} 42. b8=Q {[%emt 0:00:03]} Kxc6 {[%emt 0:00:02]} 43. Qc8+ {[%emt 0:00:02]} Kd6 {[%emt 0:00:02]} 44. Qd8+ {[%emt 0:00:03]} Ke6 {[%emt 0:00:02]} 45. Qc8+ {[%emt 0:00:03]} Kf6 {[%emt 0:00:03]} 46. Qa6+ {[%emt 0:00:02]} 1-0

[Event "Queens Festival Europe 2022"]
[Site "Tornelo"]
[Date "2022.06.19"]
[Round "4.2"]
[White "Bakhshizada, Asnad"]
[Black "Vujovic, Vera"]
[Result "0-1"]
[ECO "D53"]
[WhiteElo "1052"]
[BlackElo "1353"]
[Annotator "NA RC"]
[PlyCount "140"]
[EventDate "2022.06.19"]
[EventType "swiss"]
[EventCountry "NET"]
[SourceTitle "playchess.com"]
[Source "ChessBase"]
[SourceQuality "1"]
[TimeControl "180+2"]

1. d4 {[%emt 0:00:02]} d5 {[%emt 0:00:04]} 2. c4 {[%emt 0:00:04]} e6 {[%emt 0:00:03]} 3. Nc3 {[%emt 0:00:02]} c6 {[%emt 0:00:04]} 4. Nf3 {[%emt 0:00:01]} Nf6 {[%emt 0:00:04]} 5. Bg5 {[%emt 0:00:03]} Be7 {[%emt 0:00:03]} 6. e3 {[%emt 0:00:03]} dxc4 {[%emt 0:00:22]} 7. Bxc4 {[%emt 0:00:02]} b5 {[%emt 0:00:02]} 8. Bd3 {[%emt 0:00:07]} a6 {[%emt 0:00:02]} 9. Bxf6 {[%emt 0:00:08]} Bxf6 {[%emt 0:00:02]} 10. Ne4 {[%emt 0:00:01]} Bb7 {[%emt 0:00:09]} 11. Nc5 {[%emt 0:00:06]} Qe7 {[%emt 0:00:06]} 12. O-O {[%emt 0:00:04]} O-O {[%emt 0:00:06]} 13. Qc2 {[%emt 0:00:07]} h6 {[%emt 0:00:03]} 14. Rac1 {[%emt 0:00:09]} a5 {[%emt 0:00:08]} 15. e4 {[%emt 0:00:05]} Na6 {[%emt 0:00:35]} 16. Nxb7 {[%emt 0:00:08]} Qxb7 {[%emt 0:00:02]} 17. e5 {[%emt 0:00:10]} Nb4 {[%emt 0:00:05]} 18. Qd2 {[%emt 0:00:04]} Be7 {[%emt 0:00:08]} 19. Bb1 {[%emt 0:00:07]} Rad8 {[%emt 0:00:22]} 20. a3 {[%emt 0:00:04]} Nd5 {[%emt 0:00:03]} 21. Qc2 {[%emt 0:00:03]} g6 {[%emt 0:00:09]} 22. Qxc6 {[%emt 0:00:06]} Qxc6 {[%emt 0:00:04]} 23. Rxc6 {[%emt 0:00:02]} Nf4 {[%emt 0:00:13]} 24. Rc7 {[%emt 0:00:08]} Rfe8 {[%emt 0:00:07]} 25. Re1 {[%emt 0:00:14]} Rc8 {[%emt 0:00:18]} 26. Rb7 {[%emt 0:00:10]} b4 {[%emt 0:00:02]} 27. axb4 {[%emt 0:00:13]} Bxb4 {[%emt 0:00:02]} 28. Rd1 {[%emt 0:00:04]} Red8 {[%emt 0:00:04]} 29. g3 {[%emt 0:00:03]} Nd5 {[%emt 0:00:07]} 30. Kg2 {[%emt 0:00:18]} Rc4 {[%emt 0:00:02]} 31. Ba2 {[%emt 0:00:06]} Rc2 {[%emt 0:00:02]} 32. Bxd5 {[%emt 0:00:03]} Rxd5 {[%emt 0:00:01]} 33. Rb1 {[%emt 0:00:04]} g5 {[%emt 0:00:03]} 34. h3 {[%emt 0:00:04]} Kg7 {[%emt 0:00:02]} 35. g4 {[%emt 0:00:02]} Re2 {[%emt 0:00:04]} 36. Rc7 {[%emt 0:00:08]} Re4 {[%emt 0:00:02]} 37. Rbc1 {[%emt 0:00:10]} a4 {[%emt 0:00:04]} 38. R1c4 {[%emt 0:00:04]} Ba5 {[%emt 0:00:03]} 39. Rxa4 {[%emt 0:00:08]} Bxc7 {[%emt 0:00:02]} 40. b4 {[%emt 0:00:06]} Bb6 {[%emt 0:00:02]} 41. Ra6 {[%emt 0:00:07]} Bxd4 {[%emt 0:00:02]} 42. Nxd4 {[%emt 0:00:07]} Rexd4 {[%emt 0:00:02]} 43. Rb6 {[%emt 0:00:02]} Rxe5 {[%emt 0:00:02]} 44. Kf3 {[%emt 0:00:04]} Ree4 {[%emt 0:00:02]} 45. b5 {[%emt 0:00:03]} Re5 {[%emt 0:00:02]} 46. Rb8 {[%emt 0:00:06]} Rb4 {[%emt 0:00:02]} 47. b6 {[%emt 0:00:01]} Reb5 {[%emt 0:00:01]} 48. b7 {[%emt 0:00:03]} Rxb7 {[%emt 0:00:01]} 49. Ra8 {[%emt 0:00:02]} Rb3+ {[%emt 0:00:02]} 50. Kg2 {[%emt 0:00:02]} Rb2 {[%emt 0:00:01]} 51. Ra3 {[%emt 0:00:02]} Re2 {[%emt 0:00:01]} 52. Rf3 {[%emt 0:00:03]} Kg6 {[%emt 0:00:02]} 53. Kg3 {[%emt 0:00:02]} f5 {[%emt 0:00:01]} 54. gxf5+ {[%emt 0:00:04]} exf5 {[%emt 0:00:02]} 55. Kg2 {[%emt 0:00:01]} g4 {[%emt 0:00:01]} 56. hxg4 {[%emt 0:00:02]} fxg4 {[%emt 0:00:02]} 57. Rg3 {[%emt 0:00:02]} h5 {[%emt 0:00:01]} 58. Ra3 {[%emt 0:00:02]} h4 {[%emt 0:00:05]} 59. Ra6+ {[%emt 0:00:01]} Kf5 {[%emt 0:00:03]} 60. Ra5+ {[%emt 0:00:02]} Re5 {[%emt 0:00:02]} 61. Ra4 {[%emt 0:00:03]} h3+ {[%emt 0:00:02]} 62. Kh2 {[%emt 0:00:03]} Rb2 {[%emt 0:00:02]} 63. Kg3 {[%emt 0:00:02]} Rb3+ {[%emt 0:00:04]} 64. Kh2 {[%emt 0:00:02]} Re2 {[%emt 0:00:01]} 65. Kg1 {[%emt 0:00:02]} Rb1+ {[%emt 0:00:03]} 66. Kh2 {[%emt 0:00:02]} Rxf2+ {[%emt 0:00:01]} 67. Kg3 {[%emt 0:00:01]} Rf3+ {[%emt 0:00:02]} 68. Kh4 {[%emt 0:00:02]} Rb5 {[%emt 0:00:04]} 69. Ra1 {[%emt 0:00:03]} h2 {[%emt 0:00:01]} 70. Rh1 {[%emt 0:00:02]} Rh3# {[%emt 0:00:02]} 0-1

[Event "Queens Festival Europe 2022"]
[Site "Tornelo"]
[Date "2022.06.19"]
[Round "4.3"]
[White "Ismayil, Malak"]
[Black "Gueci, Tea"]
[Result "0-1"]
[ECO "B30"]
[WhiteElo "2001"]
[BlackElo "2248"]
[Annotator "NA RC"]
[PlyCount "72"]
[EventDate "2022.06.19"]
[EventType "swiss"]
[EventCountry "NET"]
[SourceTitle "playchess.com"]
[Source "ChessBase"]
[SourceQuality "1"]
[TimeControl "180+2"]

1. e4 {[%emt 0:00:02]} c5 {[%emt 0:00:04]} 2. Nf3 {[%emt 0:00:02]} Nc6 {[%emt 0:00:02]} 3. Bb5 {[%emt 0:00:02]} e6 {[%emt 0:00:05]} 4. Bxc6 {[%emt 0:00:02]} bxc6 {[%emt 0:00:00]} 5. b3 {[%emt 0:00:03]} d5 {[%emt 0:00:04]} 6. d3 {[%emt 0:00:02]} Nf6 {[%emt 0:00:09]} 7. e5 {[%emt 0:00:17]} Nd7 {[%emt 0:00:02]} 8. O-O {[%emt 0:00:09]} Be7 {[%emt 0:00:03]} 9. Bb2 {[%emt 0:00:10]} O-O {[%emt 0:00:14]} 10. Nbd2 {[%emt 0:00:01]} f6 {[%emt 0:00:01]} 11. exf6 {[%emt 0:00:08]} Bxf6 {[%emt 0:00:00]} 12. d4 {[%emt 0:00:12]} Re8 {[%emt 0:00:48]} 13. c4 {[%emt 0:00:19]} e5 {[%emt 0:00:20]} 14. dxe5 {[%emt 0:00:02]} Nxe5 {[%emt 0:00:00]} 15. Nxe5 {[%emt 0:00:01]} Bxe5 {[%emt 0:00:00]} 16. Bxe5 {[%emt 0:00:02]} Rxe5 {[%emt 0:00:00]} 17. Nf3 {[%emt 0:00:14]} Re7 {[%emt 0:00:30]} 18. Qd3 {[%emt 0:00:10]} d4 {[%emt 0:00:07]} 19. Rad1 {[%emt 0:00:04]} g6 {[%emt 0:00:09]} 20. Nd2 {[%emt 0:00:17]} Bf5 {[%emt 0:00:01]} 21. Qg3 {[%emt 0:00:03]} Qc7 {[%emt 0:00:08]} 22. Qg5 {[%emt 0:00:04]} Rae8 {[%emt 0:00:04]} 23. Nf3 {[%emt 0:00:03]} Re4 {[%emt 0:00:11]} 24. h3 {[%emt 0:00:12]} Qe7 {[%emt 0:00:04]} 25. Qg3 {[%emt 0:00:07]} a5 {[%emt 0:00:05]} 26. a3 {[%emt 0:00:09]} Qf6 {[%emt 0:00:03]} 27. Ng5 {[%emt 0:00:27]} Re2 {[%emt 0:00:09]} 28. Qf4 {[%emt 0:00:02]} Qe5 {[%emt 0:00:11]} 29. Qh4 {[%emt 0:00:02]} Qg7 {[%emt 0:00:02]} 30. b4 {[%emt 0:00:02]} axb4 {[%emt 0:00:02]} 31. a4 {[%emt 0:00:02]} Bc2 {[%emt 0:00:01]} 32. Rc1 {[%emt 0:00:01]} b3 {[%emt 0:00:01]} 33. a5 {[%emt 0:00:05]} b2 {[%emt 0:00:02]} 34. Rb1 {[%emt 0:00:06]} Bxb1 {[%emt 0:00:04]} 35. Rxb1 {[%emt 0:00:02]} Re1+ {[%emt 0:00:01]} 36. Kh2 {[%emt 0:00:01]} Rxb1 {[%emt 0:00:02]} 0-1

[Event "Queens Festival Europe 2022"]
[Site "Tornelo"]
[Date "2022.06.19"]
[Round "4.3"]
[White "Bordin, Silvia"]
[Black "Shuqja, Klean"]
[Result "0-1"]
[ECO "C45"]
[WhiteElo "1991"]
[BlackElo "1839"]
[Annotator "NA RC"]
[PlyCount "110"]
[EventDate "2022.06.19"]
[EventType "swiss"]
[EventCountry "NET"]
[SourceTitle "playchess.com"]
[Source "ChessBase"]
[SourceQuality "1"]
[TimeControl "180+2"]

1. e4 {[%emt 0:00:02]} e5 {[%emt 0:00:04]} 2. Nf3 {[%emt 0:00:02]} Nc6 {[%emt 0:00:02]} 3. d4 {[%emt 0:00:01]} exd4 {[%emt 0:00:02]} 4. Nxd4 {[%emt 0:00:00]} Qf6 {[%emt 0:00:07]} 5. Nf3 {[%emt 0:00:22]} Bc5 {[%emt 0:00:13]} 6. Nc3 {[%emt 0:00:05]} Bb4 {[%emt 0:00:44]} 7. Bd2 {[%emt 0:00:05]} Qe7 {[%emt 0:00:10]} 8. Qe2 {[%emt 0:00:12]} Nf6 {[%emt 0:00:10]} 9. O-O-O {[%emt 0:00:32]} Bxc3 {[%emt 0:00:37]} 10. Bxc3 {[%emt 0:00:02]} d6 {[%emt 0:00:01]} 11. Re1 {[%emt 0:00:07]} O-O {[%emt 0:00:15]} 12. Nd2 {[%emt 0:00:42]} a6 {[%emt 0:00:06]} 13. Qf3 {[%emt 0:00:08]} Ne5 {[%emt 0:00:03]} 14. Qe2 {[%emt 0:00:09]} b5 {[%emt 0:00:08]} 15. h3 {[%emt 0:00:03]} c5 {[%emt 0:00:06]} 16. f4 {[%emt 0:00:06]} Nc6 {[%emt 0:00:03]} 17. b3 {[%emt 0:00:10]} Bb7 {[%emt 0:00:16]} 18. g4 {[%emt 0:00:05]} Rfe8 {[%emt 0:00:06]} 19. Bg2 {[%emt 0:00:02]} Nd7 {[%emt 0:00:05]} 20. Qf2 {[%emt 0:00:08]} Rab8 {[%emt 0:00:10]} 21. h4 {[%emt 0:00:02]} a5 {[%emt 0:00:07]} 22. g5 {[%emt 0:00:04]} a4 {[%emt 0:00:02]} 23. h5 {[%emt 0:00:04]} axb3 {[%emt 0:00:01]} 24. cxb3 {[%emt 0:00:01]} c4 {[%emt 0:00:02]} 25. g6 {[%emt 0:00:03]} fxg6 {[%emt 0:00:02]} 26. hxg6 {[%emt 0:00:02]} h6 {[%emt 0:00:01]} 27. e5 {[%emt 0:00:12]} b4 {[%emt 0:00:06]} 28. Bd5+ {[%emt 0:00:05]} Kh8 {[%emt 0:00:03]} 29. exd6 {[%emt 0:00:03]} Qxe1+ {[%emt 0:00:06]} 30. Rxe1 {[%emt 0:00:02]} Rxe1+ {[%emt 0:00:01]} 31. Qxe1 {[%emt 0:00:02]} bxc3 {[%emt 0:00:00]} 32. Nxc4 {[%emt 0:00:01]} Nd4 {[%emt 0:00:03]} 33. Bxb7 {[%emt 0:00:06]} Nf6 {[%emt 0:00:01]} 34. Bg2 {[%emt 0:00:07]} Rd8 {[%emt 0:00:04]} 35. Kb1 {[%emt 0:00:04]} c2+ {[%emt 0:00:02]} 36. Kc1 {[%emt 0:00:02]} Re8 {[%emt 0:00:01]} 37. Qxe8+ {[%emt 0:00:04]} Nxe8 {[%emt 0:00:02]} 38. Ne5 {[%emt 0:00:02]} Nxd6 {[%emt 0:00:02]} 39. a4 {[%emt 0:00:03]} Nxb3+ {[%emt 0:00:04]} 40. Kxc2 {[%emt 0:00:02]} Nd4+ {[%emt 0:00:01]} 41. Kb2 {[%emt 0:00:02]} N4f5 {[%emt 0:00:02]} 42. a5 {[%emt 0:00:03]} Nb5 {[%emt 0:00:01]} 43. a6 {[%emt 0:00:02]} Kg8 {[%emt 0:00:02]} 44. Bc6 {[%emt 0:00:04]} Na7 {[%emt 0:00:02]} 45. Bd5+ {[%emt 0:00:01]} Kf8 {[%emt 0:00:02]} 46. Nc6 {[%emt 0:00:03]} Nb5 {[%emt 0:00:02]} 47. Bc4 {[%emt 0:00:03]} Nc7 {[%emt 0:00:03]} 48. a7 {[%emt 0:00:02]} Nd6 {[%emt 0:00:02]} 49. Bf1 {[%emt 0:00:03]} Na8 {[%emt 0:00:02]} 50. Bg2 {[%emt 0:00:01]} Nb6 {[%emt 0:00:02]} 51. Ne5 {[%emt 0:00:02]} Ke7 {[%emt 0:00:02]} 52. a8=Q {[%emt 0:00:03]} Nxa8 {[%emt 0:00:02]} 53. Bxa8 {[%emt 0:00:01]} Kf6 {[%emt 0:00:01]} 54. Bd5 {[%emt 0:00:02]} Nf5 {[%emt 0:00:03]} 55. Be4 {[%emt 0:00:04]} Ng3 {[%emt 0:00:02]} 0-1

[Event "Queens Festival Europe 2022"]
[Site "Tornelo"]
[Date "2022.06.19"]
[Round "4.3"]
[White "Subramanian, Anusha"]
[Black "Bayona, Karin Silvana"]
[Result "1-0"]
[ECO "A45"]
[WhiteElo "1671"]
[BlackElo "1793"]
[Annotator "NA RC"]
[PlyCount "57"]
[EventDate "2022.06.19"]
[EventType "swiss"]
[EventCountry "NET"]
[SourceTitle "playchess.com"]
[Source "ChessBase"]
[SourceQuality "1"]
[TimeControl "180+2"]

1. d4 {[%emt 0:00:02]} Nf6 {[%emt 0:00:05]} 2. Bg5 {[%emt 0:00:02]} Ne4 {[%emt 0:00:03]} 3. Bf4 {[%emt 0:00:02]} d5 {[%emt 0:00:08]} 4. e3 {[%emt 0:00:01]} g6 {[%emt 0:00:04]} 5. Nd2 {[%emt 0:00:03]} Nxd2 {[%emt 0:00:03]} 6. Qxd2 {[%emt 0:00:01]} Bg7 {[%emt 0:00:01]} 7. Nf3 {[%emt 0:00:01]} O-O {[%emt 0:00:06]} 8. Bd3 {[%emt 0:00:03]} Nd7 {[%emt 0:00:02]} 9. h4 {[%emt 0:00:05]} c5 {[%emt 0:00:06]} 10. c3 {[%emt 0:00:16]} cxd4 {[%emt 0:00:14]} 11. exd4 {[%emt 0:00:02]} Nf6 {[%emt 0:00:07]} 12. O-O-O {[%emt 0:00:06]} Qa5 {[%emt 0:00:10]} 13. Kb1 {[%emt 0:00:03]} b5 {[%emt 0:00:09]} 14. Ne5 {[%emt 0:00:12]} Qb6 {[%emt 0:00:22]} 15. Qe2 {[%emt 0:00:12]} b4 {[%emt 0:00:18]} 16. cxb4 {[%emt 0:00:16]} Qxb4 {[%emt 0:00:09]} 17. g4 {[%emt 0:00:18]} Nd7 {[%emt 0:00:32]} 18. Nc6 {[%emt 0:00:07]} Qb6 {[%emt 0:00:14]} 19. Nxe7+ {[%emt 0:00:09]} Kh8 {[%emt 0:00:01]} 20. Nxc8 {[%emt 0:00:23]} Raxc8 {[%emt 0:00:11]} 21. Be3 {[%emt 0:00:01]} Rb8 {[%emt 0:00:25]} 22. Rd2 {[%emt 0:00:05]} Rfe8 {[%emt 0:00:03]} 23. Qd1 {[%emt 0:00:09]} Nf6 {[%emt 0:00:06]} 24. h5 {[%emt 0:00:10]} Ne4 {[%emt 0:00:02]} 25. Bxe4 {[%emt 0:00:06]} Rxe4 {[%emt 0:00:02]} 26. hxg6 {[%emt 0:00:03]} fxg6 {[%emt 0:00:03]} 27. Rh3 {[%emt 0:00:08]} Bxd4 {[%emt 0:00:06]} 28. Bxd4+ {[%emt 0:00:06]} Rxd4 {[%emt 0:00:01]} 29. Rb3 {[%emt 0:00:06]} 1-0

[Event "Queens Festival Europe 2022"]
[Site "Tornelo"]
[Date "2022.06.19"]
[Round "4.3"]
[White "Ismayilova, Khanim"]
[Black "Jafarova, Aysel"]
[Result "1-0"]
[ECO "D27"]
[WhiteElo "1647"]
[BlackElo "1481"]
[Annotator "NA RC"]
[PlyCount "81"]
[EventDate "2022.06.19"]
[EventType "swiss"]
[EventCountry "NET"]
[SourceTitle "playchess.com"]
[Source "ChessBase"]
[SourceQuality "1"]
[TimeControl "180+2"]

1. c4 {[%emt 0:00:02]} e6 {[%emt 0:00:05]} 2. Nc3 {[%emt 0:00:02]} d5 {[%emt 0:00:01]} 3. e3 {[%emt 0:00:01]} Nf6 {[%emt 0:00:02]} 4. d4 {[%emt 0:00:01]} dxc4 {[%emt 0:00:01]} 5. Bxc4 {[%emt 0:00:02]} c5 {[%emt 0:00:02]} 6. Nf3 {[%emt 0:00:01]} a6 {[%emt 0:00:01]} 7. O-O {[%emt 0:00:02]} b5 {[%emt 0:00:02]} 8. Be2 {[%emt 0:00:02]} Bb7 {[%emt 0:00:01]} 9. b3 {[%emt 0:00:03]} Nbd7 {[%emt 0:00:02]} 10. Bb2 {[%emt 0:00:02]} Qb8 {[%emt 0:00:02]} 11. Rc1 {[%emt 0:00:02]} Bd6 {[%emt 0:00:03]} 12. h3 {[%emt 0:00:02]} O-O {[%emt 0:00:03]} 13. Qd2 {[%emt 0:00:03]} cxd4 {[%emt 0:00:02]} 14. Nxd4 {[%emt 0:00:02]} Rd8 {[%emt 0:00:07]} 15. Rfd1 {[%emt 0:00:02]} Nc5 {[%emt 0:00:04]} 16. Qc2 {[%emt 0:00:09]} h6 {[%emt 0:00:09]} 17. Bf3 {[%emt 0:00:11]} Bxf3 {[%emt 0:00:04]} 18. Nxf3 {[%emt 0:00:02]} Qb7 {[%emt 0:00:36]} 19. Ne2 {[%emt 0:00:33]} Nce4 {[%emt 0:00:19]} 20. Ned4 {[%emt 0:00:06]} Rac8 {[%emt 0:00:04]} 21. Qe2 {[%emt 0:00:03]} Rxc1 {[%emt 0:00:04]} 22. Rxc1 {[%emt 0:00:00]} Rc8 {[%emt 0:00:03]} 23. Qd1 {[%emt 0:00:05]} Rc7 {[%emt 0:00:11]} 24. Nc2 {[%emt 0:00:25]} Rd7 {[%emt 0:00:09]} 25. Qe2 {[%emt 0:00:04]} Bb8 {[%emt 0:00:18]} 26. Rd1 {[%emt 0:00:08]} Qc8 {[%emt 0:00:09]} 27. Nb4 {[%emt 0:00:14]} a5 {[%emt 0:00:09]} 28. Nc2 {[%emt 0:00:08]} b4 {[%emt 0:00:14]} 29. Rxd7 {[%emt 0:00:16]} Qxd7 {[%emt 0:00:07]} 30. Ncd4 {[%emt 0:00:01]} Qc7 {[%emt 0:00:09]} 31. Nb5 {[%emt 0:00:12]} Qc6 {[%emt 0:00:12]} 32. Ne5 {[%emt 0:00:09]} Bxe5 {[%emt 0:00:04]} 33. Bxe5 {[%emt 0:00:00]} Qc1+ {[%emt 0:00:02]} 34. Kh2 {[%emt 0:00:03]} Nd5 {[%emt 0:00:12]} 35. Bb2 {[%emt 0:00:11]} Qb1 {[%emt 0:00:05]} 36. Be5 {[%emt 0:00:20]} Nec3 {[%emt 0:00:04]} 37. Qc4 {[%emt 0:00:07]} Qf5 {[%emt 0:00:08]} 38. Bd4 {[%emt 0:00:13]} Qe4 {[%emt 0:00:04]} 39. Qc8+ {[%emt 0:00:03]} Kh7 {[%emt 0:00:01]} 40. Qf8 {[%emt 0:00:01]} Qg6 {[%emt 0:00:02]} 41. Nd6 {[%emt 0:00:02]} 1-0